bitfinex-derivatives/quotes_ETHF0:USTF0_20250104
["timestamp","ask_amount","ask_price","bid_price","bid_amount"]
[1735948801888,0.4311,3609.9,3609.4,0.4784]
[1735948803791,2.60664041,3609.9,3609.7,4.45869992]
[1735948805388,2.17554041,3610.0,3609.8,4.45869992]
[1735948805693,2.17554041,3610.0,3609.9,1.01329749]
[1735948806293,2.17554041,3610.1,3609.9,10.99504493]
[1735948806488,2.17554041,3610.1,3610.0,1.01329749]
[1735948806891,1.73154041,3610.1,3610.0,1.01329749]
[1735948807088,1.73154041,3610.1,3610.0,5.23439498]
[1735948807293,1.23154041,3610.1,3610.0,5.23439498]
[1735948807492,0.73154041,3610.1,3610.0,5.23439498]
[1735948807899,0.4403,3610.4,3610.0,9.6930949]
[1735948808100,0.4403,3610.4,3610.3,1.01329749]
[1735948808396,3.26502095,3610.6,3610.3,1.01329749]
[1735948808598,3.26502095,3610.6,3610.3,0.4441]
[1735948808791,3.26502095,3610.6,3610.5,1.01329749]
[1735948809590,3.2078,3610.7,3610.5,6.53107342]
[1735948809990,3.2078,3610.7,3610.6,1.01329749]
[1735948810899,3.2078,3610.7,3610.6,12.00307083]
[1735948811192,7.78152095,3611.3,3610.6,12.00307083]
[1735948811399,7.78152095,3611.3,3611.2,1.01329749]
[1735948811792,7.78152095,3611.3,3610.6,10.98977334]
[1735948811994,7.78152095,3611.3,3610.4,12.36012668]
[1735948811995,4.5165,3611.3,3611.1,1.01329749]
[1735948812194,4.5165,3611.3,3610.9,4.3502578]
[1735948812395,4.5165,3611.3,3611.2,1.01329749]
[1735948812589,2.32199749,3611.3,3610.9,4.3502578]
[1735948812903,2.32199749,3611.3,3611.2,1.01329749]
[1735948812904,1.3087,3611.3,3611.2,1.01329749]
[1735948815798,1.3087,3611.3,3610.9,4.8163578]
[1735948816001,1.3087,3611.3,3611.2,1.01329749]
[1735948818406,3.2078,3611.8,3611.2,1.01329749]
[1735948818600,0.8717,3611.7,3611.6,1.01329749]
[1735948819198,0.4317,3611.7,3611.6,1.01329749]
[1735948821301,1.44499749,3611.7,3610.9,4.8163578]
[1735948821603,1.44499749,3611.7,3611.0,1.01329749]
[1735948821907,1.44499749,3611.7,3611.2,1.01329749]
[1735948823209,0.4317,3611.7,3611.2,1.01329749]
[1735948824301,0.4317,3611.7,3610.9,2.5607227]
[1735948827009,0.4317,3611.7,3610.9,0.4661]
[1735948827606,0.4317,3611.7,3611.0,2.0946227]
[1735948827809,0.4317,3611.7,3611.0,2.5392227]
[1735948828708,0.4317,3611.7,3611.0,0.4446]
[1735948830311,0.27701,3611.6,3611.3,0.27702]
[1735948830614,0.27701,3611.6,3611.0,0.4446]
[1735948830806,0.27701,3611.6,3611.3,0.27702]
[1735948831207,0.27701,3611.6,3611.0,2.5392227]
[1735948831812,0.27701,3611.6,3611.4,0.27702]
[1735948832720,0.4317,3611.7,3611.0,2.5392227]
[1735948833215,0.27701,3611.6,3611.4,0.27702]
[1735948834911,0.4317,3611.7,3611.4,0.27702]
[1735948835110,0.27705,3611.1,3610.9,0.27706]
[1735948835310,0.27705,3611.1,3610.1,9.68551668]
[1735948835311,0.27708,3610.6,3610.3,6.97547342]
[1735948835509,0.27708,3610.6,3610.3,6.53107342]
[1735948836712,0.27708,3610.6,3610.3,6.80817342]
[1735948836916,0.2771,3610.4,3610.3,0.2771]
[1735948838517,2.0946227,3610.7,3610.2,0.27711]
[1735948838814,0.2771,3610.4,3610.3,0.2771]
[1735948839809,0.27709,3610.5,3610.3,0.2771]
[1735948840513,0.27708,3610.7,3610.5,0.27708]
[1735948840720,0.27708,3610.7,3610.6,0.70778]
[1735948842319,0.27707,3610.7,3610.6,0.70778]
[1735948842915,0.27707,3610.8,3610.7,0.27707]
[1735948843620,4.5588,3611.0,3610.7,0.4534]
[1735948843921,4.5588,3611.0,3610.8,0.27706]
[1735948843922,0.27706,3610.9,3610.8,0.27706]
[1735948844720,4.0992,3611.0,3610.7,0.8989]
[1735948844914,0.27705,3611.0,3610.9,0.27706]
[1735948845517,0.27705,3611.0,3610.7,0.8989]
[1735948845714,0.27705,3611.0,3610.9,0.27705]
[1735948847222,0.27704,3611.2,3610.7,0.8989]
[1735948847520,0.27704,3611.2,3611.1,0.27704]
[1735948848921,0.27704,3611.2,3611.0,0.27705]
[1735948849318,0.27704,3611.2,3611.1,0.4355]
[1735948853123,0.27704,3611.2,3611.1,0.71254]
[1735948857218,7.77142095,3611.4,3610.8,4.3502578]
[1735948857419,0.27706,3610.9,3610.8,4.3502578]
[1735948857827,0.71616,3610.9,3610.8,4.3502578]
[1735948859127,0.2771,3610.5,3610.3,4.6273578]
[1735948859325,0.716,3610.4,3610.3,4.6273578]
[1735948860527,0.4389,3610.4,3610.2,0.4165]
[1735948860826,0.716,3610.4,3610.3,0.2771]
[1735948861232,0.2771,3610.3,3610.2,0.69361]
[1735948861433,0.716,3610.4,3610.3,0.2771]
[1735948862038,0.716,3610.4,3610.2,0.69361]
[1735948862227,0.716,3610.4,3610.3,0.2771]
[1735948862727,0.2771,3610.3,3610.2,0.69361]
[1735948862939,0.716,3610.4,3610.3,0.2771]
[1735948863234,0.4389,3610.4,3610.3,0.2771]
[1735948863433,0.716,3610.4,3610.3,0.2771]
[1735948864128,0.4389,3610.4,3610.2,0.4165]
[1735948864330,0.716,3610.4,3610.3,0.2771]
[1735948865533,0.4389,3610.4,3610.3,0.2771]
[1735948866531,0.716,3610.4,3610.3,0.2771]
[1735948866830,0.27712,3610.2,3610.1,0.27712]
[1735948867923,1.15671,3610.3,3610.0,0.27713]
[1735948868136,0.8796,3610.3,3610.1,0.27711]
[1735948868344,0.27711,3610.2,3610.1,0.27711]
[1735948871035,0.27712,3610.2,3610.1,0.27712]
[1735948875939,0.8796,3610.3,3609.9,0.4223]
[1735948876138,1.15671,3610.3,3610.2,0.27711]
[1735948877140,0.8796,3610.3,3610.2,0.27711]
[1735948877634,3.6467,3610.4,3610.2,0.27711]
[1735948877839,3.70612095,3610.7,3610.6,0.27708]
[1735948878644,0.27709,3610.6,3610.5,0.27709]
[1735948879543,0.4411,3610.7,3610.3,1.3054]
[1735948879847,0.71818,3610.7,3610.6,0.27708]
[1735948880143,0.4411,3610.7,3610.6,0.27708]
[1735948880538,0.71817,3610.7,3610.6,0.27708]
[1735948881940,4.34197,3610.8,3610.7,0.27707]
[1735948882148,5.35545703,3610.8,3610.6,0.27708]
[1735948882641,5.35545703,3610.8,3610.7,0.71417]
[1735948883148,5.35545703,3610.8,3610.7,0.4371]
[1735948883838,5.35545703,3610.8,3610.7,0.71417]
[1735948884133,5.35545703,3610.8,3610.7,0.4371]
[1735948887340,5.35545703,3610.8,3610.7,0.71417]
[1735948888848,5.35545703,3610.8,3610.7,0.4371]
[1735948889151,0.27707,3610.7,3610.6,0.27708]
[1735948889545,5.35545703,3610.8,3610.7,0.27707]
[1735948890748,0.27708,3610.7,3610.6,0.27707]
[1735948892440,5.35545703,3610.8,3610.7,0.27707]
[1735948893149,5.07838703,3610.8,3610.4,0.4352]
[1735948893449,5.35545703,3610.8,3610.7,0.27707]
[1735948894050,5.07838703,3610.8,3610.7,0.27707]
[1735948894248,5.07838703,3610.8,3610.4,4.7854578]
[1735948894249,3.26502095,3610.9,3610.4,5.79894483]
[1735948894447,3.26502095,3610.9,3610.8,0.27707]
[1735948895438,3.26502095,3610.9,3610.8,1.29055703]
[1735948895842,0.4314,3611.3,3611.0,0.27705]
[1735948895843,3.26502095,3611.1,3611.0,0.27705]
[1735948896855,3.69232095,3611.1,3611.0,0.27705]
[1735948897554,0.4273,3611.1,3611.0,0.27705]
[1735948900148,0.4273,3611.1,3610.7,4.3502578]
[1735948900348,0.27707,3610.8,3610.7,4.3502578]
[1735948901052,4.49835703,3610.8,3610.7,4.3502578]
[1735948901255,4.49835703,3610.8,3610.7,1.7741578]
[1735948902053,4.49835703,3610.8,3610.5,1.7741578]
[1735948902054,0.27708,3610.6,3610.5,1.7741578]
[1735948902358,1.29056703,3610.6,3610.5,1.7741578]
[1735948903654,5.78031767,3610.6,3610.1,1.01348703]
[1735948903847,0.2771,3610.4,3610.3,0.2771]
[1735948904859,0.2771,3610.4,3610.2,0.27711]
[1735948905059,3.26367586,3610.4,3610.3,1.29058703]
[1735948906157,0.4587,3610.5,3610.4,0.2771]
[1735948906158,3.72237586,3610.5,3610.4,0.2771]
[1735948907360,0.4587,3610.5,3610.4,0.2771]
[1735948907859,0.2771,3610.4,3610.3,1.29058703]
[1735948908059,0.27711,3610.3,3610.2,0.27711]
[1735948908262,3.4849,3610.4,3610.2,0.27711]
[1735948908759,6.74857586,3610.4,3610.2,0.27711]
[1735948908958,6.47147586,3610.4,3610.1,1.01348703]
[1735948909157,6.74857586,3610.4,3610.3,0.2771]
[1735948910063,3.4849,3610.4,3610.3,0.2771]
[1735948910856,3.2078,3610.4,3610.1,1.01348703]
[1735948911059,3.4849,3610.4,3610.3,0.2771]
[1735948912858,0.2771,3610.3,3610.2,0.27711]
[1735948913359,3.4849,3610.4,3610.2,0.27711]
[1735948913560,3.4849,3610.4,3610.1,1.01348703]
[1735948913763,3.4849,3610.4,3610.3,0.2771]
[1735948914263,3.2078,3610.4,3609.8,6.97937342]
[1735948914466,0.2771,3610.3,3610.1,0.27712]
[1735948915065,4.22128703,3610.4,3609.8,7.99286045]
[1735948915370,4.49838703,3610.4,3610.3,0.2771]
[1735948915568,7.76206289,3610.4,3610.3,0.2771]
[1735948915771,0.2771,3610.3,3610.1,0.27712]
[1735948916466,0.70651,3610.2,3610.1,0.27712]
[1735948916668,7.48496289,3610.4,3610.0,0.4466]
[1735948916669,6.47147586,3610.4,3610.0,0.4466]
[1735948916873,7.18577586,3610.4,3610.3,0.2771]
[1735948917473,3.9221,3610.4,3610.3,0.2771]
[1735948918678,7.60003843,3610.4,3610.3,0.2771]
[1735948920467,0.27711,3610.3,3610.2,0.27711]
[1735948920670,4.39223843,3610.4,3610.0,0.4466]
[1735948920872,0.2771,3610.3,3610.2,0.27711]
[1735948921478,0.27711,3610.3,3610.2,0.27711]
[1735948923282,0.27712,3610.1,3610.0,0.72373]
[1735948924383,0.27714,3609.9,3609.8,0.4483]
[1735948924682,1.29062703,3609.9,3609.8,0.4483]
[1735948924873,1.29062703,3609.9,3609.8,0.72544]
[1735948925483,1.29062703,3609.9,3609.8,0.4483]
[1735948925778,1.29062703,3609.9,3609.8,0.72544]
[1735948926580,0.98772054,3609.9,3609.8,0.72544]
[1735948927281,1.26486054,3609.9,3609.8,0.72544]
[1735948928382,0.27714,3609.9,3609.8,0.72544]
[1735948928679,0.27714,3609.9,3609.8,0.4483]
[1735948929881,1.29062703,3609.9,3609.8,0.4483]
[1735948931385,1.29062703,3609.9,3609.8,0.72544]
[1735948931780,3.46431988,3609.9,3609.8,0.72544]
[1735948932885,1.29062703,3609.9,3609.8,0.4483]
[1735948933082,1.29062703,3609.9,3609.8,0.72544]
[1735948934087,1.46388207,3609.9,3609.8,0.72544]
[1735948934786,1.46388207,3609.9,3609.8,0.4483]
[1735948935383,1.46388207,3609.9,3609.8,0.72544]
[1735948937082,1.46388208,3609.9,3609.8,0.72544]
[1735948937489,1.46388208,3609.9,3609.8,0.4483]
[1735948937690,1.46388603,3609.9,3609.8,0.4483]
[1735948937886,1.46388603,3609.9,3609.8,0.72544]
[1735948938089,1.46388603,3609.9,3609.8,0.4483]
[1735948939090,1.29062703,3609.9,3609.8,0.4483]
[1735948939294,1.18674849,3609.9,3609.6,0.8614]
[1735948939482,1.29063703,3609.7,3609.6,0.70406]
[1735948939687,1.46389849,3609.7,3609.6,0.70406]
[1735948940179,1.29063703,3609.7,3609.6,0.70406]
[1735948940386,4.39454805,3609.7,3609.1,6.53107342]
[1735948940584,4.39454805,3609.7,3609.2,0.27719]
[1735948940585,1.01348703,3609.3,3609.2,0.27719]
[1735948940791,1.18674805,3609.3,3609.2,0.27719]
[1735948941288,0.17326102,3609.3,3609.2,0.27719]
[1735948943286,0.17327435,3609.3,3609.0,1.90468703]
[1735948943483,0.1732744,3609.2,3609.0,1.90468703]
[1735948943780,0.17327482,3609.1,3609.0,2.18188703]
[1735948946386,0.17327482,3609.1,3609.0,13.14292371]
[1735948947193,0.17327028,3609.1,3609.0,13.14292371]
[1735948948494,0.6052652,3609.1,3609.0,13.14292371]
[1735948948691,0.17327028,3609.1,3609.0,13.14292371]
[1735948949495,0.4320031,3609.3,3609.0,12.86572371]
[1735948949694,0.4320031,3609.3,3609.0,13.55872371]
[1735948949897,0.4320031,3609.3,3609.2,0.27719]
[1735948950086,0.4320031,3609.3,3609.2,6.80826342]
[1735948950291,0.4320031,3609.4,3609.2,6.53107342]
[1735948950489,0.4320031,3609.4,3609.3,0.69728]
[1735948951585,0.4320031,3609.4,3609.3,5.12724326]
[1735948952490,0.43201202,3609.4,3609.3,5.12724326]
[1735948952688,0.43201202,3609.4,3609.3,11.65831668]
[1735948955393,0.17325802,3609.4,3609.3,11.65831668]
[1735948955599,0.17325978,3609.4,3609.3,11.65831668]
[1735948956096,0.17325579,3609.4,3609.3,11.65831668]
[1735948957401,0.1732562,3609.4,3609.3,11.65831668]
[1735948961597,0.17326151,3609.4,3609.3,11.38113668]
[1735948961799,0.17326151,3609.4,3609.3,11.65831668]
[1735948962598,0.17326151,3609.4,3609.3,11.23821668]
[1735948962995,0.45043151,3609.4,3609.3,11.23821668]
[1735948963195,0.45043151,3609.4,3609.3,10.96103668]
[1735948964305,0.27719,3609.3,3609.2,0.27718]
[1735948964602,0.17328147,3609.3,3608.9,1.01348703]
[1735948964795,0.59478147,3609.2,3609.1,0.2772]
[1735948965197,0.5947816,3609.2,3609.1,0.2772]
[1735948966002,2.7723424,3609.2,3609.1,0.2772]
[1735948966703,2.77234286,3609.2,3609.1,0.2772]
[1735948966902,3.04953286,3609.2,3609.1,0.2772]
[1735948967204,2.77234286,3609.2,3609.1,0.2772]
[1735948967810,2.77234449,3609.2,3609.1,0.2772]
[1735948969203,2.77234359,3609.2,3609.1,0.2772]
[1735948969904,2.77234173,3609.2,3609.1,0.2772]
[1735948970302,2.77234173,3609.2,3608.9,6.53107342]
[1735948970507,1.01348703,3609.0,3608.9,6.53107342]
[1735948970803,1.29068703,3609.0,3608.9,6.80828342]
[1735948971004,2.02888104,3609.0,3608.9,6.80828342]
[1735948971204,4.20644184,3609.0,3608.9,0.27721]
[1735948973997,4.20643784,3609.0,3608.9,0.27721]
[1735948975909,2.02887704,3609.0,3608.9,0.27721]
[1735948977407,4.20643784,3609.0,3608.9,0.27721]
[1735948978611,2.30607704,3609.0,3608.9,0.27721]
[1735948978809,2.02887704,3609.0,3608.9,0.27721]
[1735948979914,4.20643784,3609.0,3608.9,0.27721]
[1735948982113,4.20643906,3609.0,3608.9,0.27721]
[1735948982619,4.20643745,3609.0,3608.9,0.27721]
[1735948983821,0.27721,3608.9,3608.8,0.27721]
[1735948984014,0.17328962,3608.9,3608.8,0.27721]
[1735948984210,4.31035783,3609.0,3608.9,0.27721]
[1735948984512,2.78235845,3609.0,3608.9,1.29069703]
[1735948984718,2.35085845,3609.0,3608.9,1.29069703]
[1735948984916,2.35085845,3609.0,3608.9,0.27721]
[1735948986715,2.1775608,3609.0,3608.9,0.27721]
[1735948987112,1.01348703,3609.1,3609.0,0.2772]
[1735948988612,3.19104783,3609.1,3609.0,0.7154]
[1735948989318,2.1775608,3609.1,3609.0,0.7154]
[1735948989615,2.60998737,3609.1,3609.0,0.7154]
[1735948990519,2.1775608,3609.1,3609.0,0.7154]
[1735948991121,2.1775608,3609.1,3609.0,5.11421834]
[1735948991912,2.61015319,3609.1,3609.0,5.11421834]
[1735948992527,0.43259239,3609.1,3609.0,5.11421834]
[1735948993321,2.61015319,3609.2,3609.1,0.2772]
[1735948993522,2.61015319,3609.2,3609.1,0.6972]
[1735948993720,0.43259239,3609.2,3609.1,0.6972]
[1735948993917,1.29066703,3609.3,3609.1,0.42]
[1735948994118,0.4328376,3609.2,3609.1,0.6972]
[1735948994326,0.43283326,3609.2,3609.1,0.42]
[1735948994624,0.43283326,3609.2,3609.1,0.6972]
[1735948995118,2.61115714,3609.2,3609.1,0.6972]
[1735948995516,2.17832388,3609.2,3609.1,0.6972]
[1735948995821,2.45551388,3609.2,3609.1,0.6972]
[1735948996023,2.17832388,3609.2,3609.1,0.6972]
[1735948996723,2.45551388,3609.2,3609.1,0.6972]
[1735948998218,2.17832388,3609.2,3609.1,0.6972]
[1735948998418,1.29067703,3609.3,3609.2,0.27719]
[1735949001228,1.01348703,3609.3,3609.2,0.27719]
[1735949001529,1.29066703,3609.3,3609.2,0.27719]
[1735949002024,3.69714121,3609.4,3609.3,0.27718]
[1735949002227,3.97431121,3609.4,3609.3,0.27718]
[1735949003527,2.88748462,3609.4,3609.3,0.27718]
[1735949004825,3.97431121,3609.4,3609.3,0.27718]
[1735949008640,1.12382961,3609.4,3609.3,0.27718]
[1735949008931,0.27719,3609.3,3609.2,0.27718]
[1735949009931,4.9774372,3609.3,3609.2,4.68122363]
[1735949010934,1.70653664,3609.3,3609.2,4.68122363]
[1735949011928,1.29067703,3609.3,3609.2,4.68122363]
[1735949012434,0.70798,3609.4,3609.3,0.27718]
[1735949012634,0.4308,3609.4,3609.3,0.27718]
[1735949013029,0.70797,3609.4,3609.3,0.27718]
[1735949014436,4.39424478,3609.4,3609.3,4.68122363]
[1735949015930,3.97838765,3609.4,3609.3,4.68122363]
[1735949017231,3.97838765,3609.4,3609.3,0.27718]
[1735949018435,0.70797,3609.4,3609.3,6.80825342]
[1735949020037,4.39425131,3609.4,3609.3,4.40334817]
[1735949021243,0.2772,3609.1,3609.0,6.80827342]
[1735949021542,0.2772,3609.1,3609.0,6.53107342]
[1735949022038,0.45049171,3609.1,3609.0,6.53107342]
[1735949022838,0.45049171,3609.1,3609.0,11.21216967]
[1735949023038,0.45049171,3609.1,3609.0,10.93496967]
[1735949023535,1.46397874,3609.1,3609.0,10.93496967]
[1735949023731,0.45049171,3609.1,3609.0,10.93496967]
[1735949024541,0.58921915,3609.1,3608.8,4.36237115]
[1735949024837,1.29069703,3608.9,3608.8,4.36237115]
[1735949025034,1.46400805,3608.9,3608.8,4.36237115]
[1735949026032,0.27722,3608.8,3608.7,4.36237115]
[1735949026232,4.09333102,3608.8,3608.7,4.36237115]
[1735949027431,7.77764605,3608.8,3608.6,4.63960115]
[1735949027633,0.45054102,3608.7,3608.6,4.63960115]
[1735949028143,0.45054047,3608.7,3608.6,4.63960115]
[1735949028641,2.62930345,3608.7,3608.6,4.63960115]
[1735949028841,2.35207345,3608.7,3608.6,4.63960115]
[1735949029041,2.35207345,3608.7,3608.6,4.36237115]
[1735949029339,2.62930345,3608.7,3608.6,4.63961115]
[1735949030238,2.62930402,3608.7,3608.6,4.63961115]
[1735949031140,2.6293035,3608.7,3608.6,4.63961115]
[1735949031646,3.64279053,3608.7,3608.6,4.63961115]
[1735949032343,3.36556053,3608.7,3608.6,4.63961115]
[1735949034345,1.1867957,3608.7,3608.6,4.63961115]
[1735949037247,1.18679731,3608.7,3608.6,4.63961115]
[1735949037636,1.46402731,3608.7,3608.6,4.63961115]
[1735949037947,1.18679656,3608.7,3608.6,4.63961115]
[1735949038447,1.18679656,3608.7,3608.6,0.27724]
[1735949039450,1.18679651,3608.7,3608.6,0.27724]
[1735949039744,1.46402651,3608.7,3608.6,0.27724]
[1735949039947,1.18679651,3608.7,3608.6,0.27724]
[1735949040444,1.18679522,3608.7,3608.6,0.27724]
[1735949040645,1.46402522,3608.7,3608.6,0.27724]
[1735949042443,1.46402702,3608.7,3608.6,0.27724]
[1735949042749,3.64279,3608.7,3608.6,0.27724]
[1735949043246,3.36556,3608.7,3608.6,0.27724]
[1735949043845,1.18679702,3608.7,3608.6,0.27724]
[1735949044160,1.01348703,3608.7,3608.6,0.27724]
[1735949044549,1.29071703,3608.7,3608.6,0.27724]
[1735949044746,1.01348703,3608.7,3608.6,0.27724]
[1735949044946,1.29071703,3608.7,3608.6,0.27724]
[1735949045149,1.01348703,3608.7,3608.6,0.27724]
[1735949046051,1.29071703,3608.7,3608.6,0.27724]
[1735949048055,3.46948001,3608.7,3608.6,0.27724]
[1735949050153,3.19225001,3608.7,3608.3,4.79697115]
[1735949050360,0.27724,3608.6,3608.5,0.27724]
[1735949050549,0.72534,3608.6,3608.5,0.27724]
[1735949051648,1.73882703,3608.6,3608.5,0.27724]
[1735949052259,4.09091051,3608.6,3608.5,0.27724]
[1735949052658,4.09090548,3608.6,3608.5,0.27724]
[1735949052958,3.81366548,3608.6,3608.5,0.27724]
[1735949053757,1.6349025,3608.6,3608.5,0.27724]
[1735949053954,0.17331547,3608.6,3608.5,0.27724]
[1735949054159,2.17876298,3608.7,3608.5,1.074]
[1735949054361,3.26838759,3608.8,3608.6,1.43978703]
[1735949054658,4.35901626,3609.0,3608.7,3.2078]
[1735949054853,2.77122195,3609.0,3608.9,1.29069703]
[1735949055056,3.26295679,3609.3,3609.2,0.27719]
[1735949055464,3.26295679,3609.3,3609.2,1.35119]
[1735949055650,3.69487075,3609.3,3609.2,1.35119]
[1735949056565,0.43191396,3609.4,3609.2,1.074]
[1735949056760,0.43191396,3609.4,3609.3,0.27718]
[1735949057764,0.43191396,3609.4,3609.2,14.15537326]
[1735949057765,0.43163085,3609.5,3609.2,14.15537326]
[1735949057956,0.43163085,3609.5,3609.4,0.27717]
[1735949059759,1.44511788,3609.6,3609.5,0.27717]
[1735949060559,1.44443663,3609.6,3609.5,0.27717]
[1735949060768,0.4309496,3609.6,3609.5,0.27717]
[1735949061764,0.4309496,3609.7,3609.4,4.3518035]
[1735949062062,1.88058703,3609.8,3609.5,0.27717]
[1735949062063,0.43075923,3609.6,3609.5,0.27717]
[1735949062463,0.60401075,3609.6,3609.5,0.27717]
[1735949062661,0.17325152,3609.6,3609.5,4.6289735]
[1735949063764,0.17325185,3609.6,3609.5,4.6289735]
[1735949064067,0.17325185,3609.6,3609.5,0.27717]
[1735949064265,0.1732518,3609.6,3609.5,0.27717]
[1735949065267,1.88058703,3609.8,3609.4,4.3518035]
[1735949065467,0.60377502,3609.7,3609.4,4.3518035]
[1735949065664,0.17325302,3609.6,3609.5,0.27717]
[1735949065970,0.17325144,3609.6,3609.5,0.27717]
[1735949066870,1.88058703,3609.8,3609.4,4.3518035]
[1735949067067,0.60371519,3609.7,3609.6,0.27716]
[1735949067864,0.17325197,3609.7,3609.6,0.27716]
[1735949068673,0.60371519,3609.7,3609.6,0.27716]
[1735949068970,0.17325197,3609.7,3609.6,0.27716]
[1735949069568,0.60371519,3609.7,3609.6,0.27716]
[1735949070074,0.60365072,3609.7,3609.6,0.27716]
[1735949070675,0.8671,3609.8,3609.5,1.01348703]
[1735949070870,0.8671,3609.8,3609.7,1.01348703]
[1735949071077,0.4563,3610.0,3609.9,0.27714]
[1735949074077,0.6728,3610.0,3609.9,0.27714]
[1735949082283,1.10376873,3610.0,3609.9,0.27714]
[1735949082578,0.6728,3610.0,3609.9,0.27714]
[1735949082780,1.10401947,3610.0,3609.9,0.27714]
[1735949083587,0.6728,3610.0,3609.9,0.27714]
[1735949083783,1.10436427,3610.0,3609.9,0.27714]
[1735949084981,0.6728,3610.0,3609.9,0.27714]
[1735949085975,0.6728,3610.0,3609.9,0.49874]
[1735949089181,1.10450393,3610.0,3609.9,0.49874]
[1735949089482,1.1045023,3610.0,3609.9,0.49874]
[1735949089987,0.6728,3610.0,3609.9,0.49874]
[1735949099493,0.6728,3610.0,3609.9,4.8505435]
[1735949100692,0.6728,3610.0,3609.9,5.00839658]
[1735949104290,0.6728,3610.0,3609.9,13.72352326]
[1735949105598,0.6728,3610.0,3609.9,5.00839658]
[1735949106099,0.6728,3610.0,3609.9,6.02188361]
[1735949106696,0.1728,3610.0,3609.9,6.02188361]
[1735949106897,0.1728,3610.0,3609.9,14.73701029]
[1735949107101,0.8733,3610.3,3610.2,0.27711]
[1735949108393,0.8733,3610.3,3610.2,11.32511787]
[1735949108899,1.88678703,3610.3,3610.2,11.32511787]
[1735949110000,2.61518703,3610.3,3610.2,11.32511787]
[1735949114306,2.33808703,3610.3,3610.2,11.32511787]
[1735949115403,5.60640099,3610.3,3610.2,11.32511787]
[1735949116398,4.59291396,3610.3,3610.2,11.32511787]
[1735949116800,5.00866479,3610.3,3610.2,4.78676658]
[1735949124921,4.59291396,3610.3,3610.2,4.78676658]
[1735949125523,4.59291396,3610.3,3610.2,5.00826658]
[1735949126225,1.3246,3610.3,3610.2,13.72339326]
[1735949126422,0.8733,3610.3,3610.2,13.72339326]
[1735949127828,0.8733,3610.3,3610.2,22.75911081]
[1735949128920,6.47611396,3610.4,3610.2,22.48200081]
[1735949129116,6.47611396,3610.4,3610.3,1.29058703]
[1735949129318,6.47611396,3610.4,3610.3,1.29368703]
[1735949130323,3.2078,3610.4,3610.3,23.55418784]
[1735949131931,3.2078,3610.4,3610.3,14.83906116]
[1735949132122,3.2078,3610.4,3610.3,14.83596116]
[1735949134030,7.93580099,3610.7,3610.6,0.27708]
[1735949134632,4.66748703,3610.7,3610.6,0.27708]
[1735949135925,4.66748703,3610.7,3610.6,11.32656952]
[1735949137333,4.66748703,3610.7,3610.6,4.78673658]
[1735949138236,4.94455703,3610.7,3610.6,4.78673658]
[1735949139835,8.62859362,3610.7,3610.6,4.63595651]
[1735949142732,8.62859362,3610.7,3610.6,4.35887651]
[1735949143627,8.62859362,3610.7,3610.5,4.35887651]
[1735949143628,5.08320966,3610.7,3610.5,4.35887651]
[1735949143834,1.29056703,3610.6,3610.5,4.35887651]
[1735949145141,4.97350522,3610.6,3610.5,4.35887651]
[1735949153141,1.70628966,3610.6,3610.5,4.35887651]
[1735949154342,1.70628966,3610.6,3610.5,4.63596651]
[1735949155746,1.42920966,3610.6,3610.5,4.63596651]
[1735949158146,1.42920966,3610.6,3610.5,0.27709]
[1735949158744,4.69814046,3610.6,3610.5,4.79255585]
[1735949159736,4.28241783,3610.6,3610.5,4.79255585]
[1735949159941,1.01348703,3610.6,3610.5,4.79255585]
[1735949163648,1.01348703,3610.6,3610.5,5.01405585]
[1735949166344,1.29056703,3610.6,3610.5,5.01405585]
[1735949167052,4.55949783,3610.6,3610.5,11.55536246]
[1735949168153,1.29056703,3610.6,3610.5,11.55536246]
[1735949168547,1.70629423,3610.6,3610.5,5.01405585]
[1735949170141,1.70629423,3610.6,3610.5,4.73696585]
[1735949170356,1.70629423,3610.6,3610.5,5.01405585]
[1735949171155,1.70629423,3610.6,3610.5,4.73696585]
[1735949171748,1.70629423,3610.6,3610.5,5.01405585]
[1735949173256,1.70629423,3610.6,3610.5,4.73696585]
[1735949177652,1.70629423,3610.6,3610.5,0.2215]
[1735949177653,5.52705536,3610.6,3610.5,0.2215]
[1735949180054,1.29058703,3610.4,3610.3,4.36195065]
[1735949181463,0.27712,3610.1,3610.0,4.36195065]
[1735949181658,1.29060703,3610.1,3610.0,4.36195065]
[1735949181859,1.29060703,3610.1,3610.0,4.63908065]
[1735949182159,1.71010703,3610.1,3610.0,4.63908065]
[1735949182357,1.71010703,3610.1,3610.0,4.36195065]
[1735949182557,5.39306328,3610.1,3610.0,4.36195065]
[1735949183358,5.83736328,3610.1,3610.0,4.36195065]
[1735949183962,5.83736328,3610.1,3610.0,0.27713]
[1735949184355,5.56024328,3610.1,3610.0,0.27713]
[1735949184564,4.69644328,3610.1,3610.0,0.27713]
[1735949185055,3.19098391,3610.1,3610.0,4.75915708]
[1735949185563,3.46810391,3610.1,3610.0,4.75915708]
[1735949187461,3.46810391,3610.1,3609.9,6.54130661]
[1735949187663,3.46810391,3610.1,3610.0,4.63522412]
[1735949188061,3.46810391,3610.1,3610.0,4.35809412]
[1735949188459,3.46810391,3610.1,3610.0,4.63522412]
[1735949189358,3.46810391,3610.1,3610.0,4.35809412]
[1735949189965,3.46810391,3610.1,3610.0,4.63522412]
[1735949190366,3.46810391,3610.1,3610.0,4.85682412]
[1735949191365,3.46810391,3610.1,3610.0,4.57969412]
[1735949196463,3.46810391,3610.1,3610.0,4.85682412]
[1735949196667,3.46810391,3610.1,3610.0,0.49873]
[1735949197261,3.46810391,3610.1,3610.0,0.2216]
[1735949200675,1.29060703,3610.1,3610.0,0.2216]
[1735949203475,3.46726861,3610.1,3610.0,0.2216]
[1735949204880,1.29060703,3610.1,3610.0,0.2216]
[1735949207377,1.29060703,3610.1,3610.0,0.49873]
[1735949207577,1.29060703,3610.1,3610.0,0.2216]
[1735949209989,1.29060703,3610.1,3610.0,4.57969412]
[1735949210490,1.29060703,3610.1,3609.7,6.54130661]
[1735949210685,4.49842703,3609.8,3609.7,4.65530661]
[1735949211485,3.48494,3609.8,3609.7,4.65530661]
[1735949211680,4.49842703,3609.8,3609.7,4.65530661]
[1735949213890,8.99338077,3609.8,3609.0,0.2772]
[1735949214093,0.2772,3609.1,3609.0,0.2772]
[1735949215195,0.2772,3609.1,3609.0,4.59938328]
[1735949215792,2.45225452,3609.4,3609.0,5.33567031]